fUST/lending_fUST_20250407
["ID","MTS","AMOUNT","RATE_DAILY","PERIOD"]
[357329951,1744007473238,-500.0,0.00039726,7]
[357329953,1744007473248,-500.0,0.00039726,7]
[357329954,1744007473258,-1195.35,0.00039726,7]
[357329956,1744007473268,-500.0,0.00039726,7]
[357329958,1744007473282,-500.0,0.00039726,7]
[357329960,1744007473293,-739.23,0.00039726,7]
[357329961,1744007473303,-500.0,0.00039726,7]
[357329963,1744007473312,-1037.89,0.00039726,7]
[357329965,1744007473322,-302.18197651,0.00039726,7]
[357329967,1744007473332,-931.74,0.00039726,7]
[357329968,1744007473342,-500.0,0.00039726,7]
[357329970,1744007473351,-500.0,0.00039726,7]
[357329972,1744007473360,-500.0,0.00039726,7]
[357329973,1744007473370,-500.0,0.00039726,7]
[357329975,1744007473381,-800.0,0.00039905,7]
[357329977,1744007473391,-500.0,0.00039999,2]
[357329979,1744007473400,-500.0,0.00039999,2]
[357329980,1744007473409,-500.0,0.00039999,2]
[357329982,1744007473419,-500.0,0.00039999,2]
[357329984,1744007473428,-500.0,0.00039999,2]
[357329986,1744007473438,-500.0,0.00039999,2]
[357329987,1744007473448,-500.0,0.00039999,2]
[357329989,1744007473458,-500.0,0.00039999,2]
[357329991,1744007473467,-500.0,0.00039999,2]
[357329993,1744007473477,-500.0,0.00039999,2]
[357329994,1744007473487,-500.0,0.00039999,2]
[357329996,1744007473496,-500.0,0.00039999,2]
[357329998,1744007473507,-252.35176082,0.0004,7]
[357330000,1744007473516,-150.98368607,0.0004,7]
[357330002,1744007473531,-500.0,0.0004,7]
[357330004,1744007473540,-500.0,0.0004,7]
[357330005,1744007473550,-500.0,0.0004,7]
[357330007,1744007473559,-500.0,0.0004,7]
[357330009,1744007473570,-250.75383452,0.0004,7]
[357330011,1744007473580,-279.45902121,0.0004,7]
[357330012,1744007473590,-890.74809302,0.0004,7]
[357330014,1744007473600,-258.96782567,0.0004,7]
[357330017,1744007473615,-175481.97373106,0.0004,5]
[357330018,1744007473625,-1000.0,0.0004,120]
[357330020,1744007473635,-481.40032387,0.0004,120]
[357330022,1744007473644,-848.76487132,0.0004,120]
[357330024,1744007473655,-3000.0,0.0004,120]
[357330026,1744007473664,-6319.46679564,0.0004,30]
[357330027,1744007473677,-1734.48914816,0.0004,60]
[357330029,1744007473686,-24522.72291907,0.0004,120]
[357330031,1744007473696,-200.0,0.0004,120]
[357330033,1744007473706,-5974.19585111,0.0004,120]
[357330035,1744007473716,-2471.28040899,0.0004,120]
[357330037,1744007473726,-351.0,0.0004,14]
[357330038,1744007473736,-533.99215556,0.0004,7]
[357330040,1744007473747,-538.62653081,0.0004,7]
[357330042,1744007473758,-812.34,0.0004,7]
[357330044,1744007473768,-500.0,0.0004,7]
[357330046,1744007473781,-729.06,0.0004,7]
[357330048,1744007473790,-500.0,0.0004,7]
[357330049,1744007473800,-500.0,0.0004,7]
[357330051,1744007473809,-500.0,0.0004,7]
[357330053,1744007473819,-500.0,0.0004,7]
[357330055,1744007473828,-736.69,0.0004,7]
[357330057,1744007473837,-500.0,0.0004,7]
[357330059,1744007473847,-500.0,0.0004,7]
[357330061,1744007473857,-500.0,0.0004,7]
[357330062,1744007473866,-500.0,0.0004,7]
[357330064,1744007473876,-500.0,0.0004,7]
[357330066,1744007473886,-500.0,0.0004,7]
[357330068,1744007473895,-500.0,0.0004,7]
[357330070,1744007473905,-500.0,0.0004,7]
[357330072,1744007473914,-500.0,0.0004,7]
[357330073,1744007473924,-500.0,0.0004,120]
[357330075,1744007473934,-200.0,0.0004,7]
[357330077,1744007473943,-500.0,0.0004,7]
[357330079,1744007473952,-500.0,0.0004,7]
[357330081,1744007473962,-500.0,0.0004,7]
[357330083,1744007473971,-500.0,0.0004,7]
[357330084,1744007473981,-500.0,0.0004,7]
[357330086,1744007473990,-362.18706251,0.0004,7]
[357330088,1744007474000,-500.0,0.0004,7]
[357330090,1744007474009,-500.0,0.0004,7]
[357330092,1744007474018,-867.45,0.0004,7]
[357330094,1744007474030,-500.0,0.0004,7]
[357330095,1744007474039,-500.0,0.0004,7]
[357330097,1744007474048,-500.0,0.0004,7]
[357330099,1744007474058,-500.0,0.0004,7]
[357330101,1744007474067,-500.0,0.0004,7]
[357330103,1744007474077,-500.0,0.0004,7]
[357330105,1744007474086,-551.89971764,0.0004,7]
[357330106,1744007474096,-500.0,0.0004,7]
[357330108,1744007474106,-500.0,0.0004,7]
[357330110,1744007474116,-500.0,0.0004,7]
[357330112,1744007474126,-500.0,0.0004,7]
[357330114,1744007474136,-500.0,0.0004,7]
[357330116,1744007474146,-533.35,0.0004,7]
[357330118,1744007474155,-906.27,0.0004,7]
[357330120,1744007474165,-670.8,0.0004,7]
[357330121,1744007474174,-500.0,0.0004,7]
[357330123,1744007474183,-500.0,0.0004,7]
[357330125,1744007474193,-500.0,0.0004,7]
[357330127,1744007474202,-500.0,0.0004,7]
[357330129,1744007474211,-500.0,0.0004,7]
[357330130,1744007474220,-500.0,0.0004,7]
[357330132,1744007474229,-500.0,0.0004,7]
[357330134,1744007474239,-517.39,0.0004,7]
[357330136,1744007474248,-500.0,0.0004,7]
[357330138,1744007474258,-500.0,0.0004,7]
[357330140,1744007474267,-534.6,0.0004,7]
[357330141,1744007474277,-500.0,0.0004,7]
[357330143,1744007474289,-500.0,0.0004,7]
[357330145,1744007474299,-1086.53,0.0004,7]
[357330147,1744007474308,-500.0,0.0004,7]
[357330149,1744007474318,-576.65,0.0004,7]
[357330151,1744007474328,-500.0,0.0004,7]
[357330153,1744007474339,-500.0,0.0004,7]
[357330155,1744007474348,-500.0,0.0004,7]
[357330157,1744007474358,-500.0,0.0004,7]
[357330158,1744007474368,-500.0,0.0004,7]
[357330160,1744007474377,-500.0,0.0004,7]
[357330162,1744007474387,-500.0,0.0004,7]
[357330164,1744007474396,-500.0,0.0004,7]
[357330166,1744007474406,-500.0,0.0004,7]
[357330168,1744007474416,-1107.37,0.0004,7]
[357330170,1744007474425,-517.30841359,0.0004,7]
[357330171,1744007474435,-500.0,0.0004,7]
[357330173,1744007474444,-500.0,0.0004,7]
[357330175,1744007474454,-1447.2,0.0004,7]
[357330177,1744007474464,-500.0,0.0004,7]
[357330179,1744007474474,-513.43,0.0004,7]
[357330181,1744007474483,-500.0,0.0004,7]
[357330183,1744007474493,-500.0,0.0004,7]
[357330185,1744007474502,-566.61,0.0004,7]
[357330186,1744007474511,-939.19,0.0004,7]
[357330188,1744007474521,-1423.54,0.0004,7]
[357330190,1744007474535,-2008.01,0.0004,7]
[357330192,1744007474545,-315.01823585,0.0004,7]
[357330194,1744007474555,-1800.94,0.0004,7]
[357330196,1744007474564,-901.74,0.0004,7]
[357330198,1744007474574,-500.0,0.0004,7]
[357330199,1744007474584,-594.58365808,0.0004,7]
[357330201,1744007474593,-500.0,0.0004,7]
[357330203,1744007474603,-749.66,0.0004,7]
[357330205,1744007474614,-500.0,0.0004,7]
[357330207,1744007474624,-500.0,0.0004,7]
[357330209,1744007474633,-500.0,0.0004,7]
[357330211,1744007474642,-500.0,0.0004,7]
[357330213,1744007474653,-500.0,0.0004,7]
[357330215,1744007474662,-697.53,0.0004,7]
[357330216,1744007474673,-500.0,0.0004,7]
[357330218,1744007474682,-934.77,0.0004,7]
[357330220,1744007474692,-500.0,0.0004,7]
[357330222,1744007474703,-524.38590184,0.0004,7]
[357330224,1744007474712,-500.0,0.0004,7]
[357330226,1744007474722,-1984.09,0.0004,7]
[357330228,1744007474732,-935.62,0.0004,7]
[357330230,1744007474742,-946.46,0.0004,7]
[357330231,1744007474751,-500.0,0.0004,7]
[357330233,1744007474762,-500.0,0.0004,7]
[357330235,1744007474772,-515.1,0.0004,7]
[357330237,1744007474784,-512.76,0.0004,7]
[357330239,1744007474794,-500.0,0.0004,7]
[357330241,1744007474803,-690.44,0.0004,7]
[357330243,1744007474813,-838.21,0.0004,7]
[357330244,1744007474822,-500.0,0.0004,7]
[357330246,1744007474832,-847.87,0.0004,7]
[357330248,1744007474842,-500.0,0.0004,7]
[357330250,1744007474852,-1589.02,0.0004,7]
[357330252,1744007474862,-500.0,0.0004,7]
[357330254,1744007474872,-500.0,0.0004,7]
[357330256,1744007474881,-500.0,0.0004,7]
[357330257,1744007474891,-500.0,0.0004,7]
[357330259,1744007474901,-1158.58,0.0004,7]
[357330261,1744007474911,-500.0,0.0004,7]
[357330263,1744007474921,-952.13,0.0004,7]
[357330265,1744007474931,-618.40006905,0.0004,7]
[357330267,1744007474940,-573.45,0.0004,7]
[357330269,1744007474950,-500.0,0.0004,7]
[357330270,1744007474959,-500.0,0.0004,7]
[357330272,1744007474969,-500.0,0.0004,7]
[357330274,1744007474979,-1057.47,0.0004,7]
[357330276,1744007474989,-500.0,0.0004,7]
[357330278,1744007475000,-500.0,0.0004,7]
[357330280,1744007475010,-199.91077663,0.0004,7]
[357330282,1744007475020,-500.0,0.0004,7]
[357330283,1744007475033,-500.0,0.0004,7]
[357330285,1744007475042,-500.0,0.0004,7]
[357330287,1744007475052,-694.43,0.0004,7]
[357330289,1744007475062,-500.0,0.0004,7]
[357330291,1744007475071,-500.0,0.0004,7]
[357330293,1744007475081,-571.11,0.0004,7]
[357330295,1744007475091,-454.2679462,0.0004,7]
[357330296,1744007475101,-500.0,0.0004,7]
[357330298,1744007475110,-500.0,0.0004,7]
[357330300,1744007475120,-528.03,0.0004,7]
[357330302,1744007475130,-500.0,0.0004,7]
[357330304,1744007475141,-613.99,0.0004,7]
[357330306,1744007475153,-500.0,0.0004,7]
[357330307,1744007475163,-500.0,0.0004,7]
[357330309,1744007475173,-1665.49,0.0004,7]
[357330311,1744007475183,-928.88,0.0004,7]
[357330313,1744007475193,-500.0,0.0004,7]
[357330315,1744007475203,-772.18,0.0004,7]
[357330316,1744007475213,-538.53187489,0.0004,7]
[357330318,1744007475223,-500.0,0.0004,7]
[357330320,1744007475232,-500.0,0.0004,7]
[357330322,1744007475242,-500.0,0.0004,7]
[357330324,1744007475251,-500.0,0.0004,7]
[357330326,1744007475261,-1501.09,0.0004,2]
[357330327,1744007475271,-500.0,0.0004,7]
[357330329,1744007475285,-586.05,0.0004,7]
[357330331,1744007475295,-500.0,0.0004,7]
[357330332,1744007475304,-722.91,0.0004,7]
[357330333,1744007475313,-404.21408849,0.0004,7]
[357330334,1744007475323,-1033.34,0.0004,7]
[357330335,1744007475332,-500.0,0.0004,7]
[357330336,1744007475341,-500.0,0.0004,7]
[357330337,1744007475351,-500.0,0.0004,7]
[357330338,1744007475361,-522.77,0.0004,7]
[357330339,1744007475371,-500.0,0.0004,7]
[357330340,1744007475380,-571.83,0.0004,7]
[357330341,1744007475389,-500.0,0.0004,7]
[357330342,1744007475399,-500.0,0.0004,7]
[357330343,1744007475408,-523.84,0.0004,7]
[357330344,1744007475418,-500.0,0.0004,7]
[357330345,1744007475428,-500.0,0.0004,7]
[357330346,1744007475437,-500.0,0.0004,7]
[357330347,1744007475446,-500.0,0.0004,7]
[357330348,1744007475455,-833.69,0.0004,7]
[357330349,1744007475464,-500.0,0.0004,7]
[357330350,1744007475473,-2025.36,0.0004,7]
[357330351,1744007475483,-500.0,0.0004,7]
[357330352,1744007475492,-500.0,0.0004,7]
[357330353,1744007475501,-1592.74,0.0004,7]
[357330354,1744007475511,-603.67,0.0004,7]
[357330367,1744007475656,-500.0,0.0004,7]
[357330369,1744007475667,-2054.09,0.0004,7]
[357330371,1744007475677,-500.0,0.0004,7]
[357330373,1744007475687,-500.0,0.0004,7]
[357330375,1744007475699,-4027.87,0.0004,7]
[357330377,1744007475709,-1703.64,0.0004,7]
[357330379,1744007475719,-1206.14,0.0004,7]
[357330381,1744007475729,-2750.5,0.0004,7]
[357330383,1744007475739,-5383.4,0.0004,7]
[357330385,1744007475749,-500.0,0.0004,7]
[357330387,1744007475759,-500.0,0.0004,7]
[357330389,1744007475768,-1044.92,0.0004,7]
[357330391,1744007475779,-752.29,0.0004,7]
[357330393,1744007475790,-5668.81,0.0004,7]
[357330395,1744007475801,-16324.2,0.0004,7]
[357330397,1744007475810,-556.96,0.0004,7]
[357330399,1744007475819,-9467.87,0.0004,7]
[357330401,1744007475828,-500.0,0.0004,7]
[357330403,1744007475839,-704.24,0.0004,7]
[357330405,1744007475848,-500.0,0.0004,7]
[357330406,1744007475858,-2032.66,0.0004,7]
[357330407,1744007475868,-7826.43,0.0004,7]
[357330408,1744007475878,-155.48951476,0.0004,7]
[357330409,1744007475887,-500.0,0.0004,7]
[357330410,1744007475896,-500.0,0.0004,7]
[357330411,1744007475905,-627.1,0.0004,7]
[357330412,1744007475915,-500.0,0.0004,7]
[357330413,1744007475925,-1564.82,0.0004,7]
[357330414,1744007475934,-1951.0,0.0004,7]
[357330415,1744007475944,-720.69,0.0004,7]
[357330416,1744007475953,-603.99,0.0004,7]
[357330417,1744007475963,-1960.56,0.0004,7]
[357330418,1744007475973,-500.0,0.0004,7]
[357330419,1744007475982,-1748.88,0.0004,7]
[357330420,1744007475991,-500.0,0.0004,7]
[357330422,1744007476001,-500.0,0.0004,7]
[357330424,1744007476010,-2029.77,0.0004,7]
[357330425,1744007476019,-500.0,0.0004,7]
[357330427,1744007476032,-1368.39,0.0004,2]
[357330428,1744007476042,-588.58,0.0004,7]
[357330429,1744007476052,-601.11,0.0004,7]
[357330430,1744007476062,-500.0,0.0004,7]
[357330431,1744007476072,-500.0,0.0004,7]
[357330432,1744007476082,-1802.77,0.0004,7]
[357330433,1744007476092,-638.37,0.0004,7]
[357330434,1744007476101,-500.0,0.0004,7]
[357330435,1744007476112,-3642.09,0.0004,7]
[357330436,1744007476121,-1347.37,0.0004,7]
[357330437,1744007476131,-1391.95,0.0004,7]
[357330438,1744007476140,-500.0,0.0004,7]
[357330439,1744007476150,-2126.62,0.0004,7]
[357330440,1744007476159,-796.84,0.0004,7]
[357330441,1744007476169,-617.31,0.0004,7]
[357330442,1744007476179,-5186.58,0.0004,7]
[357330443,1744007476189,-1111.1,0.0004,7]
[357330444,1744007476199,-500.0,0.0004,7]
[357330445,1744007476208,-1058.19,0.0004,7]
[357330446,1744007476218,-7684.6,0.0004,7]
[357330447,1744007476228,-500.0,0.0004,7]
[357330448,1744007476238,-781.69,0.0004,7]
[357330449,1744007476248,-503.58,0.0004,7]
[357330450,1744007476258,-500.0,0.0004,7]
[357330451,1744007476268,-526.85,0.0004,7]
[357330452,1744007476277,-500.0,0.0004,7]
[357330453,1744007476290,-500.0,0.0004,7]
[357330454,1744007476300,-6861.13,0.0004,7]
[357330455,1744007476309,-500.0,0.0004,7]
[357330457,1744007476318,-500.0,0.0004,7]
[357330459,1744007476328,-500.0,0.0004,7]
[357330461,1744007476338,-500.0,0.0004,7]
[357330463,1744007476347,-500.0,0.0004,7]
[357330465,1744007476357,-7716.74,0.0004,7]
[357330467,1744007476366,-500.0,0.0004,7]
[357330468,1744007476376,-2269.56,0.0004,7]
[357330469,1744007476386,-522.63158547,0.0004,7]
[357330471,1744007476395,-500.0,0.0004,7]
[357330473,1744007476404,-4907.12,0.0004,7]
[357330475,1744007476413,-504.85,0.0004,7]
[357330477,1744007476423,-500.0,0.0004,7]
[357330479,1744007476433,-500.0,0.0004,7]
[357330481,1744007476443,-542.23,0.0004,7]
[357330483,1744007476453,-500.0,0.0004,7]
[357330485,1744007476463,-2640.34,0.0004,7]
[357330486,1744007476473,-2111.69,0.0004,7]
[357330487,1744007476484,-500.0,0.0004,7]
[357330489,1744007476495,-500.0,0.0004,7]
[357330491,1744007476504,-1000.0,0.0004,3]
[357330493,1744007476514,-2900.21,0.0004,7]
[357330495,1744007476524,-500.0,0.0004,7]
[357330497,1744007476539,-754.1,0.0004,7]
[357330499,1744007476549,-500.0,0.0004,7]
[357330500,1744007476558,-500.0,0.0004,7]
[357330502,1744007476567,-582.6,0.0004,7]
[357330504,1744007476577,-726.72,0.0004,7]
[357330505,1744007476587,-904.26,0.0004,7]
[357330506,1744007476597,-500.0,0.0004,7]
[357330507,1744007476607,-500.0,0.0004,7]
[357330508,1744007476617,-853.72,0.0004,7]
[357330509,1744007476627,-564.13,0.0004,7]
[357330510,1744007476636,-17236.37,0.0004,7]
[357330511,1744007476646,-1442.71,0.0004,7]
[357330512,1744007476657,-520.98,0.0004,7]
[357330513,1744007476669,-500.0,0.0004,7]
[357330514,1744007476681,-3459.37,0.0004,7]
[357330516,1744007476690,-500.0,0.0004,7]
[357330518,1744007476699,-500.0,0.0004,7]
[357330520,1744007476709,-500.0,0.0004,7]
[357330522,1744007476719,-500.0,0.0004,7]
[357330524,1744007476728,-1195.35,0.0004,7]
[357330526,1744007476737,-500.0,0.0004,7]
[357330528,1744007476748,-500.0,0.0004,7]
[357330530,1744007476758,-739.23,0.0004,7]
[357330532,1744007476769,-500.0,0.0004,7]
[357330534,1744007476783,-1037.89,0.0004,7]
[357330536,1744007476793,-931.74,0.0004,7]
[357330538,1744007476803,-500.0,0.0004,7]
[357330540,1744007476812,-257.842606,0.0004,7]
[357330542,1744007476821,-500.0,0.0004,7]
[357330544,1744007476830,-500.0,0.0004,7]
[357330545,1744007476840,-1208.75877963,0.00040003,15]
[357330548,1744007476850,-269.59710174,0.00040021,5]
[357330549,1744007476860,-500.0,0.00040024,30]
[357330550,1744007476870,-187.6,0.00040058,7]
[357330552,1744007476880,-350.0,0.00040068,2]
[357330554,1744007476890,-705.8785,0.00040166,60]
[357330556,1744007476900,-500.0,0.00040272,2]
[357330558,1744007476910,-500.0,0.00040272,2]
[357330560,1744007476921,-500.0,0.00040272,2]
[357330562,1744007476930,-500.0,0.00040272,2]
[357330563,1744007476939,-500.0,0.00040272,2]
[357330564,1744007476949,-500.0,0.00040272,2]
[357330565,1744007476958,-500.0,0.00040272,2]
[357330566,1744007476968,-500.0,0.00040272,2]
[357330567,1744007476977,-500.0,0.00040272,2]
[357330568,1744007476987,-500.0,0.00040272,2]
[357330569,1744007476996,-500.0,0.00040272,2]
[357330570,1744007477006,-500.0,0.00040272,2]
[357330571,1744007477015,-812.34,0.00040273,7]
[357330572,1744007477025,-500.0,0.00040273,7]
[357330573,1744007477039,-729.06,0.00040273,7]
[357330574,1744007477049,-500.0,0.00040273,7]
[357330575,1744007477058,-500.0,0.00040273,7]
[357330576,1744007477068,-500.0,0.00040273,7]
[357330577,1744007477078,-500.0,0.00040273,7]
[357330578,1744007477087,-736.69,0.00040273,7]
[357330579,1744007477097,-500.0,0.00040273,7]
[357330580,1744007477107,-500.0,0.00040273,7]
[357330581,1744007477116,-500.0,0.00040273,7]
[357330582,1744007477126,-500.0,0.00040273,7]
[357330583,1744007477136,-500.0,0.00040273,7]
[357330584,1744007477145,-500.0,0.00040273,7]
[357330585,1744007477155,-500.0,0.00040273,7]
[357330586,1744007477165,-500.0,0.00040273,7]
[357330587,1744007477175,-500.0,0.00040273,7]
[357330589,1744007477185,-200.0,0.00040273,7]
[357330591,1744007477194,-470.09881826,0.00040273,7]
[357330592,1744007477204,-500.0,0.00040273,7]
[357330593,1744007477214,-500.0,0.00040273,7]
[357330594,1744007477223,-500.0,0.00040273,7]
[357330595,1744007477233,-500.0,0.00040273,7]
[357330596,1744007477242,-500.0,0.00040273,7]
[357330597,1744007477251,-500.0,0.00040273,7]
[357330598,1744007477260,-867.45,0.00040273,7]
[357330599,1744007477270,-500.0,0.00040273,7]
[357330600,1744007477283,-500.0,0.00040273,7]
[357330601,1744007477293,-500.0,0.00040273,7]
[357330603,1744007477303,-500.0,0.00040273,7]
[357330605,1744007477313,-500.0,0.00040273,7]
[357330607,1744007477323,-500.0,0.00040273,7]
[357330608,1744007477333,-500.0,0.00040273,7]
[357330610,1744007477343,-500.0,0.00040273,7]
[357330612,1744007477352,-533.35,0.00040273,7]
[357330613,1744007477362,-906.27,0.00040273,7]
[357330615,1744007477371,-670.8,0.00040273,7]
[357330617,1744007477381,-511.41039455,0.00040273,7]
[357330619,1744007477391,-500.0,0.00040273,7]
[357330621,1744007477400,-507.12830298,0.00040273,7]
[357330623,1744007477410,-310.33229933,0.00040273,7]
[357330625,1744007477419,-500.0,0.00040273,7]
[357330626,1744007477429,-517.39,0.00040273,7]
[357330628,1744007477438,-500.0,0.00040273,7]
[357330630,1744007477448,-500.0,0.00040273,7]
[357330632,1744007477457,-534.6,0.00040273,7]
[357330634,1744007477467,-500.0,0.00040273,7]
[357330636,1744007477476,-550.7323484,0.00040273,7]
[357330637,1744007477485,-1086.53,0.00040273,7]
[357330639,1744007477495,-576.65,0.00040273,7]
[357330640,1744007477505,-500.0,0.00040273,7]
[357330642,1744007477515,-500.0,0.00040273,7]
[357330644,1744007477525,-500.0,0.00040273,7]
[357330645,1744007477539,-500.0,0.00040273,7]
[357330646,1744007477549,-500.0,0.00040273,7]
[357330647,1744007477558,-500.0,0.00040273,7]
[357330648,1744007477568,-500.0,0.00040273,7]
[357330649,1744007477577,-500.0,0.00040273,7]
[357330650,1744007477587,-487.1260852,0.00040273,7]
[357330651,1744007477596,-1107.37,0.00040273,7]
[357330652,1744007477606,-500.0,0.00040273,7]
[357330653,1744007477616,-473.51681053,0.00040273,7]
[357330654,1744007477626,-1447.2,0.00040273,7]
[357330655,1744007477637,-500.0,0.00040273,7]
[357330656,1744007477646,-513.43,0.00040273,7]
[357330658,1744007477658,-500.0,0.00040273,7]
[357330659,1744007477669,-500.0,0.00040273,7]
[357330660,1744007477679,-566.61,0.00040273,7]
[357330661,1744007477690,-939.19,0.00040273,7]
[357330662,1744007477700,-1423.54,0.00040273,7]
[357330663,1744007477710,-2008.01,0.00040273,7]
[357330664,1744007477720,-1800.94,0.00040273,7]
[357330665,1744007477729,-901.74,0.00040273,7]
[357330666,1744007477739,-500.0,0.00040273,7]
[357330667,1744007477752,-749.66,0.00040273,7]
[357330668,1744007477764,-190.06494661,0.00040273,7]
[357330669,1744007477786,-500.0,0.00040273,7]
[357330670,1744007477813,-500.0,0.00040273,7]
[357330671,1744007477822,-500.0,0.00040273,7]
[357330672,1744007477833,-697.53,0.00040273,7]
[357330673,1744007477843,-500.0,0.00040273,7]
[357330674,1744007477852,-934.77,0.00040273,7]
[357330675,1744007477861,-500.0,0.00040273,7]
[357330676,1744007477871,-500.0,0.00040273,7]
[357330677,1744007477880,-1984.09,0.00040273,7]
[357330678,1744007477890,-946.46,0.00040273,7]
[357330679,1744007477900,-935.62,0.00040273,7]
[357330680,1744007477910,-500.0,0.00040273,7]
[357330681,1744007477920,-500.0,0.00040273,7]
[357330682,1744007477931,-515.1,0.00040273,7]
[357330683,1744007477942,-512.76,0.00040273,7]
[357330684,1744007477952,-500.0,0.00040273,7]
[357330685,1744007477961,-690.44,0.00040273,7]
[357330686,1744007477971,-838.21,0.00040273,7]
[357330687,1744007477981,-500.0,0.00040273,7]
[357330688,1744007477991,-847.87,0.00040273,7]
[357330689,1744007478001,-500.0,0.00040273,7]
[357330690,1744007478011,-1589.02,0.00040273,7]
[357330692,1744007478022,-500.0,0.00040273,7]
[357330693,1744007478033,-500.0,0.00040273,7]
[357330695,1744007478043,-500.0,0.00040273,7]
[357330697,1744007478053,-534.60363748,0.00040273,7]
[357330699,1744007478062,-1158.58,0.00040273,7]
[357330701,1744007478072,-500.0,0.00040273,7]
[357330703,1744007478082,-952.13,0.00040273,7]
[357330705,1744007478092,-573.45,0.00040273,7]
[357330707,1744007478102,-500.0,0.00040273,7]
[357330709,1744007478112,-500.0,0.00040273,7]
[357330711,1744007478122,-424.48669305,0.00040273,7]
[357330713,1744007478132,-1057.47,0.00040273,7]
[357330715,1744007478142,-284.32266988,0.00040273,7]
[357330717,1744007478151,-500.0,0.00040273,7]
[357330719,1744007478161,-500.0,0.00040273,7]
[357330721,1744007478171,-500.0,0.00040273,7]
[357330723,1744007478181,-500.0,0.00040273,7]
[357330725,1744007478190,-694.43,0.00040273,7]
[357330727,1744007478200,-500.0,0.00040273,7]
[357330729,1744007478210,-500.0,0.00040273,7]
[357330731,1744007478220,-571.11,0.00040273,7]
[357330733,1744007478230,-500.0,0.00040273,7]
[357330734,1744007478240,-262.360337,0.00040273,7]
[357330736,1744007478249,-528.03,0.00040273,7]
[357330738,1744007478259,-500.0,0.00040273,7]
[357330739,1744007478271,-613.99,0.00040273,7]
[357330740,1744007478280,-545.67943166,0.00040273,7]
[357330742,1744007478293,-500.0,0.00040273,7]
[357330744,1744007478303,-1665.49,0.00040273,7]
[357330746,1744007478312,-928.88,0.00040273,7]
[357330748,1744007478322,-500.0,0.00040273,7]
[357330750,1744007478332,-772.18,0.00040273,7]
[357330751,1744007478341,-500.0,0.00040273,7]
[357330752,1744007478351,-500.0,0.00040273,7]